bitfinex/quotes_ETHUSD_20251015
["timestamp","ask_amount","ask_price","bid_price","bid_amount"]
[1760538064131,0.1216,4090.8,4090.1,0.1216]
[1760538064336,2.44473977,4090.5,4090.1,1.731]
[1760538064519,2.44474954,4090.4,4090.1,1.731]
[1760538064917,2.44474954,4090.4,4089.8,0.1216]
[1760538064918,0.6336,4090.4,4089.8,0.1216]
[1760538065103,0.6336,4090.4,4088.9,0.0652]
[1760538065104,0.6336,4089.8,4088.9,0.0652]
[1760538065441,3.07871889,4089.8,4089.0,2.2828]
[1760538065751,3.07882691,4089.6,4089.0,2.2866]
[1760538065953,0.6336,4089.6,4089.0,2.2866]
[1760538066101,3.07883905,4089.6,4089.0,2.2866]
[1760538066306,0.6336,4089.6,4089.0,2.2866]
[1760538066936,2.4453951,4089.4,4089.0,2.2866]
[1760538067134,0.2243,4090.2,4089.3,0.1178]
[1760538067337,0.6336,4090.1,4089.3,0.1178]
[1760538067502,2.3616,4089.9,4089.3,0.1178]
[1760538067703,0.6336,4090.1,4089.3,0.1178]
[1760538067930,1.728,4090.4,4089.7,2.44510886]
[1760538068243,0.2243,4090.5,4089.7,2.44513291]
[1760538068542,1.728,4090.4,4089.6,2.588]
[1760538068747,4.39704338,4090.5,4089.8,2.44509024]
[1760538068953,0.4746,4091.3,4089.8,0.50330902]
[1760538069157,0.4746,4091.3,4090.3,2.44475498]
[1760538069158,2.91883553,4091.3,4090.3,2.44475498]
[1760538069321,2.44440486,4091.0,4090.1,0.1152]
[1760538069522,0.4746,4091.3,4090.6,2.44461782]
[1760538069720,0.225,4091.6,4090.8,2.44445626]
[1760538069956,0.6996,4091.6,4090.3,2.588]
[1760538070156,0.2243,4090.9,4090.4,2.44472167]
[1760538070453,0.2243,4090.9,4090.3,2.588]
[1760538070454,0.4746,4092.2,4090.5,0.4136]
[1760538070822,0.216,4092.9,4090.5,0.4136]
[1760538071026,0.4746,4092.7,4090.6,2.44462914]
[1760538071326,2.4434548,4092.6,4091.8,2.44389766]
[1760538071527,1.02685818,4092.5,4091.5,2.588]
[1760538071745,2.4435539,4092.4,4091.6,2.44400626]
[1760538071917,0.6336,4092.1,4091.5,2.588]
[1760538072123,4.80533848,4092.1,4091.5,2.588]
[1760538072455,4.80533848,4092.1,4090.7,2.587]
[1760538072456,0.6336,4091.5,4090.7,2.587]
[1760538072628,0.6336,4092.1,4091.2,0.1152]
[1760538072829,1.728,4092.4,4091.2,0.1152]
[1760538073153,2.44298663,4092.1,4091.3,2.44420901]
[1760538073358,0.6336,4092.0,4091.0,0.1152]
[1760538073568,0.6336,4091.8,4091.0,0.1152]
[1760538073931,0.6336,4091.8,4090.8,2.587]
[1760538074256,2.44403345,4091.6,4090.8,5.03149969]
[1760538074437,0.6336,4091.8,4090.8,3.37200248]
[1760538074636,0.6336,4091.8,4090.8,5.81651169]
[1760538074959,1.728,4092.0,4091.3,2.44416592]
[1760538075257,2.44360009,4092.4,4091.6,2.44398132]
[1760538075457,2.44369082,4092.2,4091.5,2.44408953]
[1760538075662,2.44369082,4092.2,4091.4,2.44413359]
[1760538075958,2.44379454,4092.0,4091.4,2.587]
[1760538076168,0.2243,4091.9,4091.4,2.587]
[1760538076457,0.2243,4091.9,4090.6,0.002]
[1760538076458,2.44428417,4091.2,4090.6,0.002]
[1760538076663,2.44422293,4091.3,4090.6,2.589]
[1760538076960,0.4746,4091.8,4090.6,2.589]
[1760538076961,3.07775835,4091.4,4090.6,2.589]
[1760538077141,2.44440693,4091.0,4090.6,0.1236]
[1760538077468,2.56585639,4091.3,4090.6,2.56822384]
[1760538077634,2.44427062,4091.2,4090.6,0.1236]
[1760538077958,2.44440323,4091.0,4090.6,0.1236]
[1760538078134,2.44456938,4090.7,4090.6,0.002]
[1760538078335,3.19976938,4090.7,4090.6,0.002]
[1760538078534,5.28076938,4090.7,4090.6,0.002]
[1760538079956,1.728,4090.7,4090.6,0.002]
[1760538080259,0.4746,4091.8,4090.6,0.002]
[1760538080559,2.44365629,4092.3,4090.7,2.68922129]
[1760538080764,0.6336,4091.5,4090.6,0.002]
[1760538080970,2.66885716,4090.8,4090.6,0.002]
[1760538081176,4.80616938,4090.7,4090.6,0.002]
[1760538081461,5.28076938,4090.7,4090.6,0.002]
[1760538081960,4.80616938,4090.7,4090.6,0.002]
[1760538082470,6.02827203,4090.7,4090.6,0.002]
[1760538082760,5.55367203,4090.7,4090.6,0.002]
[1760538082953,4.80616938,4090.7,4090.6,0.002]
[1760538083426,5.28076938,4090.7,4090.6,0.002]
[1760538085133,4.80616938,4090.7,4090.6,0.002]
[1760538085350,2.3616,4090.7,4090.6,0.002]
[1760538085675,3.07816938,4090.7,4090.6,0.002]
[1760538086171,6.02826237,4090.7,4090.6,0.002]
[1760538087273,5.55366237,4090.7,4090.6,0.002]
[1760538087433,4.80616938,4090.7,4090.6,0.002]
[1760538089272,2.3616,4090.7,4090.6,0.002]
[1760538089433,1.728,4090.7,4090.6,0.002]
[1760538089980,0.1216,4091.1,4090.6,0.4156]
[1760538090138,0.4746,4092.6,4090.9,2.44439486]
[1760538090343,1.8496,4091.6,4091.0,2.44438849]
[1760538090538,2.56563344,4091.6,4091.1,0.1152]
[1760538090739,0.2243,4091.7,4090.6,0.002]
[1760538090945,0.1216,4091.4,4090.7,2.56613659]
[1760538091237,0.1216,4091.4,4091.3,0.1152]
[1760538091639,0.1216,4091.4,4090.7,0.1216]
[1760538091640,1.728,4091.3,4090.7,2.56614706]
[1760538091867,4.17221088,4091.3,4090.7,0.1216]
[1760538092168,4.17221088,4091.3,4090.6,0.002]
[1760538092169,0.6336,4091.2,4090.6,0.002]
[1760538092467,2.56613148,4090.8,4090.6,0.002]
[1760538092636,0.1216,4090.8,4090.6,0.002]
[1760538092832,2.44456938,4090.7,4090.6,0.002]
[1760538093457,2.56612652,4090.8,4090.6,0.002]
[1760538093658,2.44456938,4090.7,4090.6,0.002]
[1760538093868,3.55276938,4090.7,4090.6,0.002]
[1760538094037,0.1216,4090.8,4090.6,0.002]
[1760538094443,2.56612005,4090.8,4090.6,0.002]
[1760538094641,3.07816938,4090.7,4090.6,0.002]
[1760538094879,3.55276938,4090.7,4090.6,0.002]
[1760538095075,3.07816938,4090.7,4090.6,0.002]
[1760538095277,0.6336,4090.7,4090.6,0.002]
[1760538095482,3.07816938,4090.7,4090.6,0.002]
[1760538096644,0.1216,4090.8,4090.6,0.002]
[1760538096842,2.44456938,4090.7,4090.6,0.002]
[1760538097046,3.07816938,4090.7,4090.6,0.002]
[1760538097649,5.89164196,4090.7,4090.6,0.002]
[1760538098339,14.46010996,4090.7,4090.6,0.002]
[1760538098544,5.89164196,4090.7,4090.6,0.002]
[1760538098936,8.06935096,4090.7,4090.6,0.002]
[1760538099152,5.89164196,4090.7,4090.6,0.002]
[1760538099356,16.35390796,4090.7,4090.6,0.002]
[1760538099683,15.14404496,4090.7,4090.6,0.002]
[1760538100474,8.84108596,4090.7,4090.6,0.002]
[1760538100846,5.89164196,4090.7,4090.6,0.002]
[1760538101067,8.07208596,4090.7,4090.6,0.002]
[1760538101268,12.88863996,4090.7,4090.6,0.002]
[1760538101474,21.46133296,4090.7,4090.6,0.002]
[1760538101669,14.46556696,4090.7,4090.6,0.002]
[1760538101862,11.18238296,4090.7,4090.6,0.002]
[1760538102575,16.90323496,4090.7,4090.6,0.002]
[1760538102874,16.90323496,4090.7,4089.1,0.1178]
[1760538102875,3.07840844,4090.3,4088.5,0.0652]
[1760538103077,2.3616,4090.6,4088.0,0.1152]
[1760538103078,2.44575273,4088.8,4088.0,0.1152]
[1760538103276,3.07938775,4088.7,4088.0,0.1152]
[1760538103461,0.6336,4088.5,4088.0,0.1152]
[1760538103667,0.2173,4089.5,4088.1,0.4136]
[1760538103867,0.6336,4088.5,4088.0,0.1152]
[1760538104070,0.6336,4088.5,4088.0,0.5288]
[1760538104378,0.6336,4088.6,4088.0,0.5288]
[1760538104574,0.6336,4089.4,4088.0,0.5288]
[1760538104750,2.44565306,4088.9,4088.2,2.44604625]
[1760538104953,0.2173,4089.9,4088.3,0.4136]
[1760538105143,0.2173,4089.9,4088.9,2.44563119]
[1760538105349,0.001,4092.1,4089.8,0.1178]
[1760538105547,0.001,4092.1,4089.9,0.4136]
[1760538105774,2.44431845,4091.2,4090.0,2.44495784]
[1760538105996,1.728,4091.7,4089.9,0.4136]
[1760538106175,2.44455938,4090.8,4090.0,2.44497831]
[1760538106374,0.2173,4090.9,4089.8,0.1178]
[1760538106583,0.6336,4090.7,4089.9,2.4450469]
[1760538106755,0.6336,4090.7,4090.0,2.44496755]
[1760538106956,1.728,4091.8,4090.1,0.4136]
[1760538107204,0.6336,4090.9,4089.8,0.1178]
[1760538107372,2.44474923,4090.4,4089.8,0.1178]
[1760538107572,0.1216,4090.3,4089.8,0.1178]
[1760538108056,0.2173,4090.8,4089.8,0.1178]
[1760538108264,0.2173,4090.9,4089.8,0.1178]
[1760538108604,0.2173,4090.9,4089.4,2.4453443]
[1760538108605,2.4449598,4090.1,4089.4,2.4453443]
[1760538108909,0.6336,4089.8,4089.1,2.44551412]
[1760538109066,0.6336,4089.8,4088.9,0.1152]
[1760538109261,0.6336,4089.6,4088.9,0.1152]
[1760538109485,1.728,4090.2,4088.9,0.1152]
[1760538109687,2.4451621,4089.8,4088.9,0.1152]
[1760538109947,0.6336,4089.8,4089.0,2.44558571]
[1760538110073,0.6336,4089.8,4089.1,2.44549726]
[1760538110279,0.6336,4089.8,4089.2,2.4454657]
[1760538110511,0.6336,4089.9,4089.0,2.44558451]
[1760538110656,1.728,4090.7,4089.4,2.44531784]
[1760538110864,2.44486884,4090.2,4090.0,0.002]
[1760538111085,2.4448172,4090.3,4090.0,0.002]
[1760538111407,1.729,4090.8,4090.0,0.002]
[1760538111408,0.001,4090.8,4090.0,0.002]
[1760538111573,1.729,4090.8,4090.1,0.1178]
[1760538111761,4.17263672,4090.6,4090.1,0.1178]
[1760538112159,0.6336,4090.3,4090.0,0.002]
[1760538112395,4.80652799,4090.1,4090.0,0.002]
[1760538113789,1.728,4090.1,4090.0,0.002]
[1760538115014,4.80652799,4090.1,4090.0,0.002]
[1760538115215,6.00316289,4090.1,4090.0,0.002]
[1760538115914,3.0867349,4090.1,4090.0,0.002]
[1760538116117,1.728,4090.1,4090.0,0.002]
[1760538116801,0.001,4090.8,4090.0,0.4156]
[1760538117002,2.44552511,4090.8,4090.1,2.56272278]
[1760538117589,2.44551708,4090.8,4090.1,0.1178]
[1760538117784,0.6336,4090.5,4090.1,0.1178]
[1760538117992,0.001,4090.8,4090.2,2.44482613]
[1760538118190,0.001,4090.8,4090.1,2.56270948]
[1760538118516,2.44456938,4090.7,4090.1,0.41563095]
[1760538118721,0.001,4090.8,4090.2,2.44482776]
[1760538118898,2.44551595,4090.8,4090.1,0.1178]
[1760538119093,1.729,4090.8,4090.2,2.5664641]
[1760538119294,0.001,4090.8,4090.3,0.4136]
[1760538119622,0.001,4090.8,4090.4,0.4136]
[1760538119802,0.001,4090.8,4090.5,2.44468891]
[1760538120004,0.001,4090.8,4090.4,0.30978672]
[1760538120325,0.0002,4090.8,4090.7,0.1216]
[1760538120524,0.0002,4090.8,4090.7,2.56616938]
[1760538120707,0.0002,4090.8,4090.7,2.44456938]
[1760538121026,0.0002,4090.8,4090.7,2.85816938]
[1760538123003,0.0002,4090.8,4090.1,0.1178]
[1760538123202,0.0002,4090.8,4089.5,0.002]
[1760538123411,2.44492799,4090.1,4089.5,0.002]
[1760538123915,2.3616,4090.6,4089.6,2.44522456]
[1760538124225,2.44481946,4090.3,4089.6,2.44522456]
[1760538124733,3.07834768,4090.5,4089.5,0.002]
[1760538124894,0.6336,4090.5,4090.1,0.1178]
[1760538125224,2.44473626,4090.5,4089.8,0.1178]
[1760538125398,2.44476052,4090.4,4089.8,0.1178]
[1760538125795,1.728,4090.5,4089.5,0.002]
[1760538126008,2.44492799,4090.1,4089.5,0.002]
[1760538126526,5.26882799,4090.1,4089.5,0.002]
[1760538127043,3.07882691,4089.6,4089.5,0.002]
[1760538127346,4.80682691,4089.6,4089.5,0.002]
[1760538127499,5.26912691,4089.6,4089.5,0.002]
[1760538127841,2.3616,4089.6,4089.5,0.002]
[1760538128004,4.80682691,4089.6,4089.5,0.002]
[1760538128596,1.728,4089.6,4089.5,0.002]
[1760538128808,0.4625,4090.8,4089.5,0.002]
[1760538129008,0.31273397,4090.7,4089.5,0.002]
[1760538129225,1.728,4090.6,4089.6,2.44517901]
[1760538129428,2.44474247,4090.5,4089.7,2.44515353]
[1760538129635,0.4625,4090.8,4089.9,2.44503778]
[1760538129636,0.0002,4090.8,4089.9,2.44503778]
[1760538129806,2.44462914,4090.6,4089.5,0.002]
[1760538130016,1.728,4090.4,4089.5,0.002]
[1760538130218,3.30522691,4089.6,4089.5,0.002]
[1760538130542,5.03322691,4089.6,4089.5,0.002]
[1760538130746,3.0790661,4089.2,4089.1,0.002]
[1760538131048,5.54447127,4089.2,4089.1,0.002]
[1760538131243,6.00677127,4089.2,4089.1,0.002]
[1760538131456,6.07835008,4089.2,4089.1,0.002]
[1760538132048,4.8070661,4089.2,4089.1,0.002]
[1760538132612,5.2693661,4089.2,4089.1,0.002]
[1760538134015,4.1734661,4089.2,4089.1,0.002]
[1760538134647,1.728,4089.2,4089.1,0.002]
[1760538134851,4.8070661,4089.2,4089.1,0.002]
[1760538135056,5.53230921,4089.2,4089.1,0.002]
[1760538135218,5.99460921,4089.2,4089.1,0.002]
[1760538136653,4.8070661,4089.2,4089.1,0.002]
[1760538137720,5.2693661,4089.2,4089.1,0.002]
[1760538139238,3.5413661,4089.2,4089.1,0.002]
[1760538139424,5.2693661,4089.2,4089.1,0.002]
[1760538140002,4.8070661,4089.2,4089.1,0.002]
[1760538140123,4.1734661,4089.2,4089.1,0.002]
[1760538140318,5.93124921,4089.2,4089.1,0.002]
[1760538140851,5.46894921,4089.2,4089.1,0.002]
[1760538141971,4.1734661,4089.2,4089.1,0.1172]
[1760538142459,4.8070661,4089.2,4089.1,0.1172]
[1760538142762,4.8070661,4089.2,4089.1,0.002]
[1760538142763,5.2693661,4089.2,4089.1,0.002]
[1760538143269,15.18205291,4089.1,4089.0,1e-08]
[1760538143476,15.64435291,4089.1,4089.0,1e-08]
[1760538143628,15.64355291,4089.1,4089.0,1e-08]
[1760538143849,22.01423997,4088.6,4088.5,0.002]
[1760538144096,28.66737422,4088.6,4088.5,0.002]
[1760538144277,15.17742422,4088.6,4088.5,0.002]
[1760538144486,4.80742497,4088.6,4088.5,0.002]
[1760538144954,5.55538227,4088.6,4088.5,0.002]
[1760538145372,6.01768227,4088.6,4088.5,0.002]
[1760538145779,22.92293127,4088.6,4088.5,0.002]
[1760538146159,20.41409727,4088.6,4088.5,0.002]
[1760538146373,13.53240327,4088.6,4088.5,0.002]
[1760538146879,20.91765927,4088.6,4088.5,0.002]
[1760538147514,30.93016392,4088.6,4088.5,0.002]
[1760538147681,4.80784379,4087.9,4087.8,1e-08]
[1760538147855,5.03424379,4087.9,4087.8,1e-08]
[1760538148181,5.49654379,4087.9,4087.8,1e-08]
[1760538148574,5.03424379,4087.9,4087.8,1e-08]
[1760538148771,4.80784379,4087.9,4087.8,1e-08]
[1760538148990,5.55580109,4087.9,4087.8,1e-08]
[1760538149212,2.44598063,4088.4,4087.8,1e-08]
[1760538149499,2.90778536,4089.2,4087.8,0.41760001]
[1760538149802,2.4453465,4089.4,4087.8,0.41760001]
[1760538150105,2.44630658,4089.5,4088.0,0.002]
[1760538150298,0.4623,4089.4,4088.0,0.002]
[1760538150599,2.44612411,4088.1,4088.0,0.002]
[1760538150905,0.4623,4089.7,4088.1,0.1172]
[1760538151197,2.4453465,4089.4,4088.2,0.4176]
[1760538151401,1.97263465,4089.3,4088.1,0.1172]
[1760538151885,1.97263465,4089.3,4088.0,0.002]
[1760538151886,3.07972411,4088.1,4088.0,0.002]
[1760538152085,2.3616,4088.1,4088.0,0.002]
[1760538152287,0.4633,4089.8,4088.0,2.86577205]
[1760538152490,2.4453465,4089.4,4088.1,0.5348]
[1760538152692,2.3616,4088.8,4088.1,2.98091535]
[1760538152896,0.001,4089.8,4088.2,0.4176]
[1760538153195,2.44615498,4089.8,4088.3,2.44595515]
[1760538153354,2.4455683,4089.1,4088.3,2.44595515]
[1760538153554,2.44547781,4089.2,4088.4,0.29807552]
[1760538153771,3.07926323,4088.9,4088.5,0.1152]
[1760538154504,0.6336,4089.1,4088.6,0.4176]
[1760538154802,2.3616,4089.1,4088.7,0.4176]
[1760538155292,0.001,4089.5,4088.8,0.4176]
[1760538155498,0.001,4089.5,4089.1,2.44549494]
[1760538155695,0.001,4089.5,4088.8,2.86329144]
[1760538155696,0.001,4089.5,4088.8,0.4176]
[1760538156203,0.6336,4089.4,4088.5,0.1152]
[1760538156408,0.6336,4089.2,4088.1,0.1172]
[1760538156604,2.4459314,4088.5,4088.1,0.1172]
[1760538156805,0.6336,4088.4,4088.1,0.1172]
[1760538157166,0.6336,4088.4,4088.0,0.002]
[1760538157374,3.07972411,4088.1,4088.0,0.002]
[1760538157667,5.36029697,4088.1,4088.0,0.002]
[1760538157866,5.79639697,4088.1,4088.0,0.002]
[1760538158297,5.36029697,4088.1,4088.0,0.002]
[1760538158500,5.79639697,4088.1,4088.0,0.002]
[1760538159099,5.36029697,4088.1,4088.0,0.002]
[1760538159586,5.79639697,4088.1,4088.0,0.002]
[1760538160707,5.36029697,4088.1,4088.0,0.002]
[1760538160908,5.79639697,4088.1,4088.0,0.002]
[1760538161102,5.36029697,4088.1,4088.0,0.002]
[1760538161489,5.79639697,4088.1,4088.0,0.002]
[1760538162909,4.80772411,4088.1,4088.0,0.002]
[1760538163221,1.728,4088.1,4088.0,0.002]
[1760538163385,1.728,4088.1,4088.0,0.4196]
[1760538163579,2.3616,4088.1,4088.0,0.002]
[1760538163908,4.80772411,4088.1,4088.0,0.002]
[1760538165010,2.3616,4088.1,4088.0,0.002]
[1760538165314,4.80772411,4088.1,4088.0,0.002]
[1760538166394,2.3616,4088.1,4088.0,0.4196]
[1760538166641,0.2293,4089.0,4088.0,0.4196]
[1760538166820,0.1216,4088.3,4088.1,0.1172]
[1760538167025,0.1216,4088.3,4088.2,0.4176]
[1760538167226,0.1208,4088.3,4088.2,0.4176]
[1760538167538,0.1208,4088.3,4088.1,0.1172]
[1760538167700,2.44576874,4088.7,4088.2,0.4176]
[1760538167900,2.44591013,4088.5,4088.1,0.1172]
[1760538168106,4.17384435,4088.6,4088.1,0.38590502]
[1760538168301,1.728,4088.6,4088.1,0.1172]
[1760538168540,2.44589628,4088.5,4088.1,0.1172]
[1760538168749,2.56755751,4088.4,4088.1,0.1172]
[1760538168953,2.44592984,4088.5,4088.1,0.1172]
[1760538169245,2.44592984,4088.5,4088.0,0.002]
[1760538169246,0.1216,4088.2,4088.0,0.002]
[1760538169404,3.07972411,4088.1,4088.0,0.002]
[1760538169801,4.80772411,4088.1,4088.0,0.002]
[1760538170026,5.24382411,4088.1,4088.0,0.002]
[1760538170847,4.80772411,4088.1,4088.0,0.002]
[1760538171056,5.54526295,4088.1,4088.0,0.002]
[1760538171236,4.80772411,4088.1,4088.0,0.002]
[1760538171542,3.07972411,4088.1,4088.0,0.002]
[1760538171916,0.6336,4088.1,4088.0,0.002]
[1760538172115,3.07972411,4088.1,4088.0,0.002]
[1760538172345,0.6336,4088.1,4088.0,0.002]
[1760538172845,2.44612411,4088.1,4088.0,0.002]
[1760538173012,0.1216,4088.3,4088.0,0.4196]
[1760538173212,0.1216,4088.3,4088.2,0.1172]
[1760538174029,2.56760445,4088.3,4088.0,0.002]
[1760538174224,2.44607303,4088.2,4088.0,0.002]
[1760538174423,0.1216,4088.3,4088.1,0.1172]
[1760538174622,0.1216,4088.3,4088.0,0.002]
[1760538174833,0.6336,4088.5,4088.2,0.1172]
[1760538175058,2.44589981,4088.5,4088.2,0.1172]
[1760538175236,2.44598442,4088.4,4088.2,0.1172]
[1760538175432,2.44605643,4088.3,4088.0,0.002]
[1760538175633,0.6336,4088.5,4088.0,0.002]
[1760538175858,2.44578155,4088.7,4088.2,0.1172]
[1760538176066,0.871,4088.9,4088.0,0.002]
[1760538176354,2.44588161,4088.6,4088.0,0.002]
[1760538176527,2.3616,4088.8,4088.1,0.1172]
[1760538176728,2.4458156,4088.7,4088.1,0.1172]
[1760538176924,0.6336,4088.9,4088.1,0.41549663]
[1760538177122,0.6336,4088.7,4088.1,0.1172]
[1760538177336,3.07972411,4088.1,4088.0,0.002]
[1760538177735,0.4454,4089.1,4088.0,0.002]
[1760538177936,0.001,4089.1,4088.0,0.4196]
[1760538178138,2.3626,4089.1,4088.1,0.1172]
[1760538178463,0.6336,4088.7,4088.1,0.1172]
[1760538178662,2.44580822,4088.7,4088.1,0.1172]
[1760538178868,0.6346,4089.1,4088.1,0.1172]
[1760538178869,0.001,4089.1,4088.1,0.1172]
[1760538179173,0.001,4089.1,4088.2,0.4176]
[1760538179362,2.44654652,4089.1,4088.4,2.44592344]
[1760538179676,0.001,4089.1,4088.2,0.4176]
[1760538179835,0.001,4089.1,4088.2,2.86366365]
[1760538179836,2.44653407,4089.1,4088.2,2.86366365]
[1760538180152,0.6336,4088.6,4088.1,0.1172]
[1760538180350,0.001,4089.1,4088.1,0.5348]
[1760538180351,3.07931542,4088.8,4088.1,0.5348]
[1760538180558,0.6336,4088.8,4088.1,0.5348]
[1760538180770,2.44597351,4088.4,4088.0,0.002]
[1760538180974,0.6336,4088.6,4088.0,0.002]
[1760538181184,3.07957754,4088.4,4088.0,0.002]
[1760538181365,0.75242567,4088.8,4088.1,0.1172]
[1760538181366,0.6336,4088.7,4088.1,0.1172]
[1760538181883,0.6336,4088.6,4088.1,0.1172]
[1760538182091,2.44606428,4088.2,4088.1,0.1172]
[1760538182384,2.44606428,4088.2,4088.0,0.002]
[1760538182385,4.80772411,4088.1,4088.0,0.002]
[1760538182593,3.07972411,4088.1,4088.0,0.002]
[1760538182887,0.4444,4089.3,4088.0,0.002]
[1760538183035,1.728,4089.4,4088.1,0.1172]
[1760538183240,2.44576515,4088.8,4088.1,0.1172]
[1760538183483,2.44572341,4088.8,4088.1,0.1172]
[1760538183645,0.001,4089.5,4088.2,2.44606428]
[1760538183852,1.728,4089.3,4088.4,2.44593319]
[1760538184266,2.44565639,4088.9,4088.2,2.44601747]
[1760538184466,2.44570235,4088.9,4088.1,3.4820349]
[1760538184677,2.44658455,4089.1,4088.4,2.44590388]
[1760538184876,0.1226,4089.1,4088.4,0.71439343]
[1760538185185,0.1226,4089.1,4089.0,2.44558571]
[1760538185186,0.001,4089.1,4089.0,2.44558571]
[1760538185387,0.001,4089.1,4089.0,2.86318571]
[1760538185757,0.001,4089.8,4089.4,2.4453465]
[1760538186079,0.001,4089.8,4089.7,2.44516712]
[1760538186285,0.001,4089.8,4089.7,2.4521275]
[1760538186448,0.001,4090.7,4089.7,2.4521275]
[1760538186449,1e-08,4090.1,4090.0,2.44498777]
[1760538186648,0.001,4090.7,4090.3,2.44480844]
[1760538186872,0.001,4090.7,4090.3,5.01980844]
[1760538187049,0.001,4090.7,4090.3,5.43540844]
[1760538188193,0.001,4090.7,4090.3,5.01980844]
[1760538188483,2.44562783,4090.7,4090.3,2.575]
[1760538188683,2.44465047,4090.6,4090.2,0.1168]
[1760538188880,2.44465047,4090.6,4089.8,0.1168]
[1760538189185,0.001,4090.7,4089.8,0.1168]
[1760538189356,2.44491486,4090.2,4089.4,2.445337]
[1760538189556,0.6336,4090.3,4089.3,0.1142]
[1760538189782,2.44492652,4090.2,4089.2,0.1142]
[1760538189951,2.44492652,4090.2,4089.3,0.26882]
[1760538190280,0.6346,4090.4,4089.6,2.44518767]
[1760538190480,0.001,4090.4,4089.3,0.68442]
[1760538190680,0.0002,4090.4,4089.5,2.44528011]
[1760538190886,0.0002,4090.4,4089.4,2.4453465]
[1760538191086,0.0002,4090.4,4089.8,2.44509448]
[1760538191287,0.6336,4090.2,4089.3,0.26882]
[1760538191453,0.0002,4090.4,4089.2,2.6872]
[1760538191798,0.0002,4090.4,4089.8,2.44510436]
[1760538192354,0.0002,4090.4,4089.7,2.44516187]
[1760538192551,0.0002,4090.4,4089.8,2.44510066]
[1760538192788,0.0002,4090.4,4089.3,0.4156]
[1760538193089,0.0002,4090.4,4090.3,2.44480844]
[1760538193391,0.0002,4090.4,4090.3,5.01780844]
[1760538193698,0.0002,4090.4,4090.3,5.43340844]
[1760538194271,0.0002,4090.4,4090.3,5.01780844]
[1760538194470,0.0002,4090.4,4090.3,5.43340844]
[1760538194652,0.0002,4090.4,4090.3,6.2212383]
[1760538195058,0.0002,4090.4,4090.3,6.3428383]
[1760538195489,0.0002,4090.4,4090.3,24.6858183]
[1760538195690,0.0002,4090.4,4090.3,26.4138183]
[1760538196067,0.0002,4090.4,4090.3,26.7629133]
[1760538196491,0.001,4090.7,4090.6,2.44462914]
[1760538196701,0.001,4090.7,4090.6,26.69965082]
[1760538196906,0.001,4091.3,4091.2,6.59160762]
[1760538197062,0.001,4091.3,4091.2,6.74427062]
[1760538197371,0.001,4091.3,4091.2,7.15987062]
[1760538198585,0.001,4091.3,4091.2,6.74427062]
[1760538198807,0.001,4091.3,4091.2,7.68154277]
[1760538199007,0.001,4091.3,4091.2,8.09714277]
[1760538200283,0.001,4091.3,4091.2,8.58477233]
[1760538200483,0.001,4091.3,4091.2,28.31648033]
[1760538200932,1e-08,4092.1,4092.0,11.08823776]
[1760538201239,1e-08,4092.1,4092.0,14.69619075]
[1760538201437,1e-08,4092.1,4092.0,12.78178875]
[1760538201737,1e-08,4092.1,4092.0,8.68440375]
[1760538201886,1e-08,4092.1,4092.0,5.69780375]
[1760538202091,1e-08,4092.1,4092.0,5.01479276]
[1760538202406,1e-08,4092.1,4091.3,1.728]
[1760538202588,1e-08,4092.1,4092.0,2.44379276]
[1760538202789,1e-08,4092.1,4092.0,5.01479276]
[1760538203187,1e-08,4092.1,4092.0,5.43039276]
[1760538203402,1e-08,4092.1,4092.0,7.94582302]
[1760538203633,1e-08,4092.1,4092.0,10.63931102]
[1760538203932,1e-08,4092.1,4092.0,11.27291102]
[1760538204353,0.0002,4092.5,4092.4,2.4435539]
[1760538204670,0.4301,4094.2,4092.4,2.4435539]
[1760538204671,0.4301,4095.5,4092.9,30.35677239]
[1760538204875,0.4301,4095.5,4093.3,4.91881663]
[1760538205173,0.2231,4095.2,4093.3,4.91881663]
[1760538205334,0.2231,4095.2,4093.3,5.33441663]
[1760538205542,0.2231,4094.9,4093.3,5.45601663]
[1760538205874,0.2231,4095.2,4093.3,5.45601663]
[1760538206673,0.2231,4095.2,4093.3,10.01591163]
[1760538206874,0.6532,4095.2,4093.3,8.84891163]
[1760538207055,0.2231,4094.9,4093.3,11.22395468]
[1760538207375,0.2231,4094.9,4093.3,13.86095868]
[1760538207801,0.2231,4094.9,4094.8,2.44212171]
[1760538208003,0.4301,4095.7,4094.8,2.70564676]
[1760538208302,0.001,4095.9,4094.9,0.27056468]
[1760538208499,0.001,4095.9,4095.8,0.1216]
[1760538208700,0.001,4095.9,4095.8,2.6906]
[1760538209006,0.4311,4095.9,4095.8,2.6906]
[1760538210677,2.87256585,4095.9,4095.8,2.6906]
[1760538210881,2.87256585,4095.9,4095.4,0.1216]
[1760538210882,2.44164749,4095.6,4095.4,0.1216]
[1760538211199,0.4311,4095.9,4095.5,2.568]
[1760538211399,2.44163498,4095.7,4095.4,0.1216]
[1760538211566,0.4301,4095.6,4095.5,2.568]
[1760538211769,0.4301,4095.6,4095.4,0.1216]
[1760538212002,2.4415327,4095.8,4095.4,0.1216]
[1760538212299,2.44158596,4095.7,4095.5,2.568]
[1760538212500,2.44250036,4095.9,4095.4,0.1216]
[1760538212800,0.001,4095.9,4095.6,2.568]
[1760538213101,0.001,4095.9,4095.7,0.1216]
[1760538213303,0.001,4095.9,4095.8,2.45793287]
[1760538213477,0.001,4095.9,4095.8,2.46594071]
[1760538213677,0.001,4095.9,4095.8,2.44152546]
[1760538213904,0.001,4095.9,4095.8,2.568]